bitfinex/quotes_ETHUSD_20260114
["timestamp","ask_amount","ask_price","bid_price","bid_amount"]
[1768355680391,6.00690794,3329.5,3328.8,1.23794822]
[1768355680595,3.00345397,3329.5,3328.8,0.001]
[1768355680795,3.00345397,3329.5,3328.8,1.44104598]
[1768355682235,6.00690794,3329.5,3328.8,1.44104598]
[1768355682413,3.00345397,3329.5,3328.8,1.44104598]
[1768355682620,6.00690794,3329.5,3328.8,1.44104598]
[1768355683332,6.00690794,3329.5,3328.8,0.20409776]
[1768355683509,1.34442151,3329.4,3328.8,0.001]
[1768355684298,6.00690794,3329.5,3328.8,0.001]
[1768355686240,3.00345397,3329.5,3328.8,1.23794822]
[1768355687239,6.00690794,3329.5,3328.8,1.23794822]
[1768355689419,4.34803748,3329.4,3328.8,0.001]
[1768355689607,1.34442151,3329.3,3328.8,0.001]
[1768355691433,1.34442151,3329.2,3328.8,0.001]
[1768355692138,3.00368863,3329.3,3328.8,0.001]
[1768355693734,6.00690794,3329.5,3328.8,0.001]
[1768355695019,1.34442151,3329.4,3328.8,0.001]
[1768355695949,1.34442151,3329.2,3328.8,0.001]
[1768355696114,0.41,3329.1,3328.8,0.001]
[1768355696846,1.34442151,3329.0,3328.8,0.001]
[1768355697153,1.34442151,3329.0,3327.8,1.23694822]
[1768355697320,1.34442151,3328.8,3327.8,1.41754304]
[1768355697523,1.34442151,3328.6,3327.8,0.18059482]
[1768355697848,0.41,3328.7,3327.5,0.16]
[1768355697849,1.34442151,3328.4,3327.5,0.409]
[1768355698517,3.00435631,3328.5,3327.6,1.23694822]
[1768355698921,3.41420841,3328.7,3327.8,1.23694822]
[1768355700453,3.00354418,3329.4,3328.4,1.23694822]
[1768355700756,0.41,3329.2,3328.4,1.23694822]
[1768355701556,3.41375324,3329.2,3328.4,1.23694822]
[1768355701929,3.41375324,3329.2,3328.1,3.41368062]
[1768355701930,6.41750648,3329.2,3328.1,1.64594822]
[1768355702250,7.76192799,3329.2,3328.2,1.40154304]
[1768355702454,6.41750648,3329.2,3328.2,1.40154304]
[1768355702651,6.41750648,3329.2,3328.7,0.001]
[1768355703080,4.75817475,3329.2,3328.7,0.001]
[1768355703360,7.76192799,3329.2,3328.7,0.001]
[1768355706660,1.29473142,3329.1,3328.7,0.001]
[1768355707025,6.41750648,3329.2,3328.7,0.001]
[1768355708185,7.7122379,3329.2,3328.7,0.001]
[1768355708767,6.41750648,3329.2,3328.7,0.001]
[1768355709391,7.7122379,3329.2,3328.7,0.001]
[1768355710090,1.29473142,3329.1,3328.7,0.001]
[1768355710491,6.41750648,3329.2,3328.7,0.001]
[1768355711910,3.41375324,3329.2,3328.7,0.001]
[1768355712081,1.29473142,3329.1,3328.7,0.001]
[1768355712263,6.41750648,3329.2,3328.7,0.001]
[1768355713995,6.00708836,3329.4,3328.7,0.001]
[1768355714293,0.41,3329.1,3328.7,0.001]
[1768355715289,0.002,3328.9,3328.7,0.001]
[1768355715909,0.002,3328.9,3328.7,1.3396768]
[1768355718893,1.4108505,3330.2,3328.8,1.3209123]
[1768355719215,0.69080295,3330.1,3329.2,1.3209123]
[1768355719429,6.28680895,3330.0,3329.2,1.3209123]
[1768355719619,6.006006,3330.0,3329.2,1.3209123]
[1768355720599,1.69157496,3329.9,3328.7,0.001]
[1768355720800,1.4108505,3329.7,3328.7,0.001]
[1768355720999,1.4108505,3329.5,3328.7,0.001]
[1768355722020,3.00354418,3329.4,3328.7,1.3219123]
[1768355723954,3.003003,3330.0,3328.8,1.3209123]
[1768355724247,0.41,3329.9,3329.0,1.3209123]
[1768355725916,3.00318337,3329.8,3329.0,1.3209123]
[1768355726937,7.41721724,3329.8,3328.8,1.3209123]
[1768355727448,7.41721724,3329.8,3329.0,0.001]
[1768355727639,1.4108505,3329.7,3329.0,0.001]
[1768355727820,1.4128505,3329.7,3329.0,0.001]
[1768355728020,3.00336376,3329.6,3329.0,0.001]
[1768355728435,4.41421426,3329.6,3329.0,0.001]
[1768355728913,1.4108505,3329.5,3329.0,0.001]
[1768355729118,1.4108505,3329.4,3329.0,0.001]
[1768355729570,1.4108505,3329.4,3328.7,0.001]
[1768355729719,1.4108505,3329.4,3327.6,1.3209123]
[1768355730036,1.4108505,3329.0,3327.6,1.3209123]
[1768355730218,1.4108505,3328.8,3327.7,0.17299123]
[1768355732048,3.0041758,3328.7,3327.7,0.17299123]
[1768355732251,3.0041758,3328.7,3327.7,1.49390353]
[1768355732422,3.0041758,3328.7,3327.8,1.3209123]
[1768355733953,1.4108505,3328.6,3327.7,3.17804992]
[1768355734158,1.4108505,3328.6,3327.8,1.29189639]
[1768355734326,3.0041758,3328.7,3327.9,1.3209123]
[1768355735218,3.0041758,3328.7,3327.8,4.2968753]
[1768355735219,3.0041758,3328.7,3328.0,11.06821321]
[1768355735419,0.41,3328.9,3328.4,9.74091399]
[1768355736326,3.00356213,3329.4,3328.4,14.04260037]
[1768355736327,3.41367741,3329.3,3328.4,14.04260037]
[1768355737561,3.41367741,3329.3,3328.4,11.03816514]
[1768355737760,0.41,3329.3,3328.8,9.74091399]
[1768355737958,3.00528334,3329.7,3328.9,1.10381651]
[1768355738268,3.41528334,3329.7,3328.9,1.10381651]
[1768355738667,3.41528334,3329.7,3328.9,4.10781032]
[1768355738968,3.41528334,3329.7,3328.9,2.40106766]
[1768355739168,3.41528707,3329.7,3328.9,5.40505613]
[1768355739471,3.41528097,3329.7,3329.0,1.51459701]
[1768355740044,0.002,3329.4,3329.0,1.51459701]
[1768355740380,0.002,3331.4,3331.1,0.1565]
[1768355740577,1.42649246,3331.4,3331.1,0.5655]
[1768355740785,1.42649246,3331.4,3331.1,0.04746308]
[1768355741851,1.42649246,3331.4,3330.5,0.409]
[1768355742149,0.002,3331.4,3330.5,0.409]
[1768355742677,0.002,3331.4,3330.4,0.409]
[1768355742844,0.002,3331.4,3330.5,0.17062512]
[1768355743678,0.002,3331.4,3330.3,4.29991511]
[1768355743679,0.002,3331.4,3330.3,1.29725115]
[1768355743969,0.002,3331.4,3330.3,1.70625115]
[1768355744275,1.42649246,3331.4,3330.3,0.409]
[1768355744654,3.00183111,3331.3,3330.3,0.409]
[1768355745374,3.00183111,3331.3,3330.3,0.16]
[1768355745566,3.78582856,3331.3,3330.3,0.16]
[1768355746101,3.0037507,3331.4,3330.3,4.45992933]
[1768355746258,3.00374288,3331.4,3330.3,1.45725115]
[1768355746448,3.00374288,3331.4,3330.3,4.45997106]
[1768355746854,3.00374288,3331.4,3330.3,1.45725115]
[1768355746855,6.00548576,3331.4,3330.3,1.45725115]
[1768355747065,1.42449246,3331.3,3330.3,0.409]
[1768355747385,0.78599782,3331.4,3330.3,4.29996542]
[1768355747586,0.002,3331.4,3330.4,0.409]
[1768355747788,1.42649246,3331.4,3330.4,0.409]
[1768355749991,3.00183111,3331.3,3330.4,0.409]
[1768355750152,0.002,3331.4,3330.5,1.29725115]
[1768355751759,0.002,3331.1,3330.5,1.29725115]
[1768355752067,0.002,3331.1,3330.5,4.29972363]
[1768355752390,0.002,3331.1,3330.5,4.32974915]
[1768355752768,0.002,3331.1,3330.6,1.29725115]
[1768355753084,0.002,3331.1,3330.7,0.43297491]
[1768355754210,0.1564763,3331.4,3330.5,3.00253822]
[1768355754974,1.58096876,3331.4,3330.6,3.00242262]
[1768355755905,1.58096876,3331.4,3330.5,3.00251777]
[1768355756475,3.15824622,3331.4,3330.5,3.00251777]
[1768355756975,0.1564763,3331.4,3330.5,3.00251777]
[1768355757176,0.1564763,3331.4,3330.6,0.34415442]
[1768355757177,1.42449246,3331.3,3330.6,0.34415442]
[1768355757417,1.42449246,3331.3,3330.3,3.00272238]
[1768355757616,1.42449246,3331.3,3330.1,0.59]
[1768355757819,1.42449246,3331.3,3330.2,0.409]
[1768355758020,1.42449246,3331.3,3330.3,3.4117233]
[1768355758181,1.42449246,3331.3,3330.4,3.00262985]
[1768355758380,3.41079289,3331.4,3330.4,4.299881]
[1768355758826,1.42449246,3331.3,3330.4,3.00262985]
[1768355759006,3.41079289,3331.4,3330.4,1.29725115]
[1768355759206,7.83707824,3331.4,3330.4,1.29725115]
[1768355759512,7.83707824,3331.4,3330.5,0.55421344]
[1768355759821,1.42449246,3331.3,3330.3,0.83319096]
[1768355760016,1.42449246,3331.3,3330.4,0.409]
[1768355760221,1.58096876,3331.3,3330.4,0.409]
[1768355760429,4.42641368,3331.2,3330.4,0.409]
[1768355761547,7.4283349,3331.2,3330.4,0.409]
[1768355761857,4.42641368,3331.2,3330.4,0.409]
[1768355762229,1.42449246,3331.1,3330.3,0.409]
[1768355763421,1.42449246,3331.1,3330.3,0.87990278]
[1768355763618,1.42449246,3331.1,3330.7,0.001]
[1768355763818,0.1564763,3331.0,3330.7,0.001]
[1768355764640,1.58096876,3331.0,3330.7,0.001]
[1768355766256,0.1564763,3331.0,3330.7,0.001]
[1768355777291,1.56444301,3331.0,3330.7,0.001]
[1768355778375,1.40796671,3331.0,3330.7,0.001]
[1768355778680,1.40796671,3331.6,3330.7,0.001]
[1768355778977,1.40796671,3331.4,3330.7,0.001]
[1768355780184,1.40796671,3331.1,3330.7,0.001]
[1768355783896,0.1564763,3331.0,3330.7,0.001]
[1768355784898,1.56444301,3331.0,3330.7,0.001]
[1768355786768,1.40796671,3330.9,3330.7,0.001]
[1768355787198,0.1564763,3331.0,3330.7,0.001]
[1768355788401,1.56444301,3331.0,3330.7,0.001]
[1768355791184,1.40796671,3330.9,3330.7,0.001]
[1768355794291,0.1564763,3330.8,3330.7,0.001]
[1768355795108,1.59060213,3330.8,3330.7,0.001]
[1768355795312,4.59288386,3330.8,3330.7,0.001]
[1768355796301,1.59060213,3330.8,3330.7,0.001]
[1768355796808,3.15875803,3330.8,3330.7,0.001]
[1768355797191,0.1564763,3330.8,3330.7,0.001]
[1768355797626,3.15875803,3330.8,3330.7,0.001]
[1768355798120,0.1564763,3330.8,3330.7,0.001]
[1768355799148,3.15875803,3330.8,3330.7,0.001]
[1768355799653,0.1564763,3330.8,3330.7,0.001]
[1768355800944,3.15875803,3330.8,3330.7,0.001]
[1768355801646,0.1564763,3330.8,3330.7,0.001]
[1768355802456,3.15875803,3330.8,3330.7,0.001]
[1768355802952,0.1564763,3330.8,3330.7,0.001]
[1768355805359,3.15875803,3330.8,3330.7,0.001]
[1768355806972,4.59288386,3330.8,3330.7,0.001]
[1768355809373,4.43640756,3330.8,3330.7,0.001]
[1768355811270,1.58960213,3330.7,3329.9,0.409]
[1768355811660,1.58960213,3330.7,3329.9,1.86440097]
[1768355811857,0.1554763,3330.7,3329.9,1.45540097]
[1768355812055,1.58960213,3330.7,3329.7,1.45540097]
[1768355812262,1.58960213,3330.7,3329.8,1.45540097]
[1768355812584,1.58960213,3330.7,3329.9,0.48676463]
[1768355812784,4.59202578,3330.7,3329.9,1.9421656]
[1768355814092,4.59202578,3330.7,3329.9,1.45540097]
[1768355814403,3.15789995,3330.7,3329.9,1.45540097]
[1768355814874,4.59202578,3330.7,3329.9,1.45540097]
[1768355815076,3.15789995,3330.7,3329.9,1.45540097]
[1768355815392,4.59202578,3330.7,3329.9,1.45540097]
[1768355815587,4.59202578,3330.7,3329.9,1.94216336]
[1768355815997,3.15789995,3330.7,3330.0,1.45540097]
[1768355816391,3.00228217,3330.8,3329.9,10.21091746]
[1768355816392,1.43412583,3330.8,3329.9,10.21091746]
[1768355816698,3.41222068,3330.9,3330.0,1.45540097]
[1768355818999,6.41444136,3330.9,3330.0,1.45540097]
[1768355819173,3.41222068,3330.9,3330.2,1.45540097]
[1768355820505,4.84634651,3330.9,3330.2,1.45540097]
[1768355820680,7.84856719,3330.9,3330.2,1.45540097]
[1768355822088,4.84634651,3330.9,3330.2,1.45540097]
[1768355822880,4.84634651,3330.9,3330.5,0.001]
[1768355824612,7.84856719,3330.9,3330.5,0.001]
[1768355827686,4.84634651,3330.9,3330.5,0.001]
[1768355828803,7.84856719,3330.9,3330.5,0.001]
[1768355829303,3.41220085,3330.9,3330.5,0.001]
[1768355829783,4.81825808,3330.9,3330.5,0.001]
[1768355831902,3.41220085,3330.9,3330.5,0.001]
[1768355832623,1.40605723,3330.8,3330.5,0.001]
[1768355834024,3.41220085,3330.9,3330.5,0.001]
[1768355834231,6.4144017,3330.9,3330.5,0.001]
[1768355834427,3.41220085,3330.9,3330.5,0.001]
[1768355834726,3.00220085,3330.9,3330.5,0.001]
[1768355837130,6.00430477,3331.0,3330.5,0.001]
[1768355837448,7.41052799,3331.0,3330.5,0.001]
[1768355841265,0.41,3331.1,3330.5,1.47727684]
[1768355841417,1.40622322,3331.4,3330.5,1.47727684]
[1768355843331,3.00183111,3331.3,3330.5,1.47727684]
[1768355843946,4.40805433,3331.3,3330.5,1.47727684]
[1768355844256,7.40988544,3331.3,3330.5,1.47727684]
[1768355845855,7.40988544,3331.3,3330.8,0.001]
[1768355849457,1.40622322,3331.2,3330.8,0.001]
[1768355850069,3.00201134,3331.1,3330.8,0.001]
[1768355850562,6.00402268,3331.1,3330.8,0.001]
[1768355850761,3.00201134,3331.1,3330.8,0.001]
[1768355851468,6.00402268,3331.1,3330.8,0.001]
[1768355853645,1.40622322,3331.0,3330.8,0.001]
[1768355855054,3.00219159,3330.9,3330.8,0.001]
[1768355857477,4.40835602,3331.0,3330.8,0.001]
[1768355857781,7.41048882,3331.0,3330.8,0.001]
[1768355858356,1.40155667,3330.9,3330.8,0.001]
[1768355859408,4.40374826,3330.9,3330.8,0.001]
[1768355859567,5.18533637,3330.9,3330.8,0.001]
[1768355862487,5.18533637,3330.9,3330.5,0.001]
[1768355862488,1.40155667,3330.8,3330.5,0.001]
[1768355863386,1.40155667,3330.8,3329.6,4.41831982]
[1768355863702,1.40155667,3330.6,3329.6,4.82731982]
[1768355864271,7.40630041,3330.7,3329.7,1.41500035]
[1768355864478,8.22508926,3330.7,3329.7,1.41500035]
[1768355865092,8.22508926,3330.7,3329.8,1.41500035]
[1768355865273,3.82116072,3330.7,3330.0,1.41500035]
[1768355865909,6.82353259,3330.7,3330.0,1.41500035]
[1768355866902,8.22508926,3330.7,3330.0,1.41500035]
[1768355868587,8.22508926,3330.7,3329.8,1.41500035]
[1768355868790,1.40155667,3330.5,3329.6,1.41500035]
[1768355869094,1.40155667,3330.5,3329.7,0.409]
[1768355869284,1.40155667,3330.5,3329.7,1.82400035]
[1768355869483,1.40155667,3330.5,3329.8,0.18240004]
[1768355869800,4.40419559,3330.5,3330.3,0.001]
[1768355869982,1.40155667,3330.4,3330.3,0.001]
[1768355871180,3.00263892,3330.5,3330.3,0.001]
[1768355874622,6.004796,3330.7,3330.3,0.001]
[1768355874808,6.74543127,3330.7,3330.3,0.001]
[1768355875505,8.14698794,3330.7,3330.3,0.001]
[1768355879134,1.40155667,3330.6,3330.3,0.001]
[1768355881141,3.00255216,3330.5,3330.3,0.001]
[1768355883439,6.00510432,3330.5,3330.3,0.001]
[1768355883740,6.81983395,3330.5,3330.3,0.001]
[1768355884108,8.22139062,3330.5,3330.3,0.001]
[1768355884823,1.40155667,3330.4,3330.3,0.001]
[1768355888216,4.40419899,3330.4,3330.3,0.001]
[1768355888645,3.00264232,3330.4,3330.3,0.001]
[1768355889048,1.413876,3331.1,3330.3,1.45297848]
[1768355889247,1.823876,3331.1,3330.3,1.45297848]
[1768355889628,1.413876,3331.1,3330.3,1.45297848]
[1768355890651,6.00420294,3331.0,3330.3,1.45297848]
[1768355892535,3.00210147,3331.0,3330.3,1.45297848]
[1768355893271,6.00420294,3331.0,3330.3,1.45297848]
[1768355896038,6.00384244,3331.2,3330.3,1.45297848]
[1768355896256,1.24938424,3331.1,3330.3,1.45297848]
[1768355896459,1.413876,3331.0,3330.3,1.45297848]
[1768355896778,1.413876,3331.0,3330.3,0.001]
[1768355898194,3.00210147,3331.0,3330.3,1.39487995]
[1768355899682,6.00420294,3331.0,3330.3,1.39487995]
[1768355901066,7.40123639,3331.0,3330.3,1.39487995]
[1768355901262,1.39703345,3330.9,3330.3,0.001]
[1768355904400,0.002,3330.7,3330.3,0.001]
[1768355904780,1.39903345,3330.7,3330.3,0.001]
[1768355906621,3.00246201,3330.6,3330.3,0.001]
[1768355907431,6.00492402,3330.6,3330.3,0.001]
[1768355907616,7.40195747,3330.6,3330.3,0.001]
[1768355907799,8.14235322,3330.6,3330.3,0.001]
[1768355909184,5.13989121,3330.6,3330.3,0.001]
[1768355909586,8.14235322,3330.6,3330.3,0.001]
[1768355911848,7.40195747,3330.6,3330.3,0.001]
[1768355913647,3.00246201,3330.6,3330.3,0.001]
[1768355914247,0.412,3331.0,3330.3,1.39487995]
[1768355914814,6.00455882,3330.9,3330.3,1.39487995]
[1768355916247,3.00227941,3330.9,3330.3,1.39487995]
[1768355916446,0.002,3330.7,3330.3,1.39487995]
[1768355919567,0.002,3330.7,3330.3,0.001]
[1768355920768,0.002,3330.7,3330.3,1.4426135]
[1768355923863,0.002,3330.7,3330.3,0.001]
[1768355926786,3.00437187,3330.7,3330.3,0.001]
[1768355927853,3.00437187,3330.7,3330.6,0.001]
[1768355933827,0.002,3330.7,3330.6,0.001]
[1768355934620,1.43705665,3330.7,3330.6,0.001]
[1768355935815,4.43942852,3330.7,3330.6,0.001]
[1768355935999,5.18359955,3330.7,3330.6,0.001]
[1768355937308,4.43942852,3330.7,3330.6,0.001]
[1768355939488,3.00437187,3330.7,3330.6,0.001]
[1768355940320,1.43505665,3330.6,3330.3,0.001]
[1768355940715,1.43505665,3330.5,3330.3,0.001]
[1768355941530,3.00441398,3330.7,3330.3,0.001]
[1768355942194,3.60508526,3330.7,3330.3,0.001]
[1768355942394,6.60753624,3330.7,3330.3,0.001]
[1768355942794,3.60508526,3330.7,3330.3,0.001]
[1768355945229,3.00441398,3330.7,3330.3,0.001]
[1768355946932,6.00686496,3330.7,3330.3,0.001]
[1768355947901,7.29048914,3330.7,3330.3,0.001]
[1768355948634,0.08711738,3593.3,3331.7,1.18617312]
[1768355948635,10.22,3334.8,3331.7,1.18617312]
[1768355948900,9.84061646,3335.0,3333.0,9.72596275]
[1768355948901,0.28078531,3334.7,3333.0,9.72596275]
[1768355949051,1.56440949,3334.6,3333.2,1.32361461]
[1768355949252,0.2807579,3334.5,3333.3,1.32361461]
[1768355949454,0.29126335,3334.5,3333.5,1.32361461]
[1768355949772,1.28362418,3334.6,3333.5,1.32361461]
[1768355949972,1.28362418,3334.9,3333.6,1.32361461]
[1768355950483,1.28362418,3334.9,3333.7,0.41]
[1768355951150,1.28362418,3334.9,3333.7,1.73361461]
[1768355951884,6.27543468,3334.8,3333.8,1.32361461]
[1768355952189,10.62979745,3334.8,3333.8,1.32361461]
[1768355953990,6.27543468,3334.8,3334.3,1.32361461]
[1768355954285,1.28362418,3335.4,3334.4,1.73261461]
[1768355954454,4.28166291,3335.6,3334.5,1.32361461]
[1768355954856,7.27970164,3335.6,3334.5,1.32361461]
[1768355955088,0.72797016,3335.5,3334.6,0.409]
[1768355955287,6.12440752,3335.4,3334.6,1.73261461]
[1768355955870,6.12440752,3335.4,3334.6,1.32361461]
[1768355956187,1.28362418,3335.2,3334.1,1.32361461]
[1768355956687,1.28362418,3335.2,3334.2,0.409]
[1768355956868,1.28362418,3335.0,3334.2,0.409]
[1768355957268,2.31304565,3335.1,3334.2,0.409]
[1768355957473,1.28362418,3335.2,3334.2,0.409]
[1768355957671,1.28362418,3335.2,3334.3,0.409]
[1768355958394,9.12286,3335.1,3334.3,0.409]
[1768355960201,10.4149987,3335.1,3334.3,0.409]
[1768355961096,1.2921387,3335.0,3334.3,0.409]
[1768355961295,2.63348382,3334.9,3334.3,0.409]
[1768355961472,2.63348382,3334.9,3334.0,2.99939149]
[1768355961675,2.63348382,3334.9,3334.1,0.409]
[1768355963000,1.2921387,3334.8,3333.6,1.3069208]
[1768355963180,1.2921387,3334.8,3333.7,3.40865871]
[1768355963380,1.2921387,3334.8,3333.7,4.71557951]
[1768355963567,1.2941387,3334.8,3333.7,4.71557951]
[1768355963967,1.2941387,3334.8,3333.8,4.30648761]
[1768355964206,0.72914314,3334.7,3333.8,4.30648761]
[1768355964501,6.85355066,3334.7,3333.9,1.3069208]
[1768355964690,8.14568936,3334.7,3333.7,4.30655073]
[1768355964871,1.2921387,3334.6,3334.0,0.409]
[1768355965482,1.2921387,3334.6,3333.8,1.3069208]
[1768355965677,1.11465308,3334.5,3333.9,0.409]
[1768355967309,1.11465308,3334.5,3333.9,4.259]
[1768355967609,1.11465308,3334.5,3334.0,0.409]
[1768355967810,6.12440752,3334.4,3334.0,0.409]
[1768355968314,6.12440752,3334.4,3334.1,0.409]
[1768355970425,6.12440752,3334.4,3334.0,0.409]
[1768355971621,6.12440752,3334.4,3333.9,3.85]
[1768355971794,6.12440752,3334.4,3334.0,0.409]
[1768355973125,6.12440752,3334.4,3334.0,4.259]
[1768355974624,10.5763817,3334.4,3334.0,4.259]
[1768355975137,7.57730406,3334.4,3334.0,4.259]
[1768355975990,1.29832703,3334.3,3333.4,1.37417636]
[1768355976486,1.29832703,3334.3,3333.5,0.409]
[1768355976690,2.99931015,3334.1,3333.5,0.409]
[1768355976899,1.29832703,3334.0,3333.3,3.85]
[1768355977217,1.29832703,3334.0,3333.4,0.409]
[1768355977427,1.29832703,3334.0,3333.3,0.409]
[1768355978846,2.99949008,3333.9,3333.1,1.37417636]
[1768355979022,3.87794068,3333.9,3333.3,0.409]
[1768355979194,11.30067523,3333.9,3333.3,0.409]
[1768355979523,11.30067523,3333.9,3333.1,1.37417636]
[1768355979719,11.30067523,3333.9,3333.2,0.409]
[1768355980196,1.29832703,3333.8,3332.8,1.37417636]
[1768355980395,1.29832703,3333.7,3332.9,1.78317636]
[1768355980694,1.13006752,3333.8,3333.1,1.37417636]
[1768355980893,9.1238976,3333.9,3333.2,1.37417636]
[1768355981518,9.1238976,3333.9,3333.3,1.37417636]
[1768355983420,12.12344981,3333.9,3333.3,1.37417636]
[1768355983628,1.29832703,3333.3,3331.5,2.11193772]
[1768355983864,1.29832703,3333.3,3331.0,5.41835167]
[1768355983865,1.29832703,3332.6,3331.4,1.37417636]
[1768355984125,21.12198218,3333.9,3331.5,0.409]
[1768355984126,0.409,3332.8,3331.5,0.409]
[1768355984326,0.409,3332.8,3331.6,1.40419196]
[1768355984627,0.409,3332.8,3331.8,1.37417636]
[1768355984827,1.70732703,3332.8,3331.6,1.37417636]
[1768355985006,1.70732703,3332.8,3331.7,1.552494]
[1768355985405,1.70732703,3332.8,3330.8,0.16]
[1768355985406,1.29832703,3331.8,3330.8,0.16]
[1768355985605,0.409,3332.1,3330.8,1.37417636]
[1768355985799,0.409,3332.1,3331.1,1.37417636]
[1768355986007,0.409,3332.1,3331.0,1.37417636]
[1768355986439,1.29832703,3332.3,3331.1,0.409]
[1768355986733,1.29832703,3332.3,3331.1,0.58731764]
[1768355987407,6.00204068,3332.2,3331.2,1.37417636]
[1768355988233,6.12440752,3332.1,3331.2,1.37417636]
[1768355989336,9.12557925,3332.1,3331.2,1.37417636]
[1768355989741,10.42390628,3332.1,3331.1,1.961494]
[1768355989946,9.12557925,3332.1,3331.2,1.37417636]
[1768355990158,9.12557925,3332.1,3331.2,1.57032576]
[1768355991955,9.12557925,3332.1,3331.2,1.97932576]
[1768355993151,9.12557925,3332.1,3331.3,1.37417636]
[1768355994347,1.29832703,3332.0,3331.2,0.409]
[1768355994966,1.29832703,3332.0,3330.8,1.37417636]
[1768355995267,1.29832703,3332.0,3331.2,0.409]
[1768355995465,1.73193801,3332.0,3331.2,0.409]
[1768355995858,3.00129055,3331.9,3331.2,0.409]
[1768355996056,3.00129055,3331.9,3331.2,1.78317636]
[1768355996454,3.00129055,3331.9,3331.2,1.37417636]
[1768355997366,4.29961758,3331.9,3331.1,0.409]
[1768355997570,4.29961758,3331.9,3331.1,1.78317636]
[1768355997870,6.12440752,3331.8,3331.1,1.78317636]
[1768355998066,10.08177577,3331.8,3331.1,1.37417636]
[1768355998442,7.08034465,3331.8,3331.1,1.37417636]
[1768355999341,7.08034465,3331.8,3331.4,0.001]
[1768355999542,0.002,3331.7,3331.4,0.001]
[1768356001033,1.30032703,3331.7,3331.4,0.001]
[1768356001238,0.002,3331.7,3331.4,0.001]
[1768356001859,1.29832703,3331.6,3331.4,0.001]
[1768356002047,1.29832703,3331.6,3330.6,0.001]
[1768356002048,1.29832703,3331.6,3330.7,0.409]
[1768356002446,1.29832703,3331.6,3330.6,0.001]
[1768356002763,1.29832703,3331.6,3330.8,1.37417636]
[1768356002764,6.12440752,3331.6,3330.8,1.37417636]
[1768356002942,0.002,3331.7,3331.3,1.37417636]
[1768356003567,0.002,3331.7,3331.0,1.37417636]
[1768356004247,0.002,3331.7,3331.1,0.409]
[1768356005045,0.002,3331.7,3331.1,1.77743695]
[1768356005352,0.002,3331.7,3331.0,0.41]
[1768356005555,0.002,3331.7,3331.0,1.77843695]
[1768356005756,0.002,3331.7,3331.0,1.97411241]
[1768356006154,1.35543631,3331.7,3331.0,0.19567546]
[1768356006359,1.35543631,3331.7,3330.6,0.411]
[1768356006746,1.35543631,3331.7,3330.6,0.001]
[1768356007147,0.002,3331.7,3330.6,1.36943695]
[1768356007342,0.002,3331.7,3330.8,1.34527317]
[1768356007585,0.002,3331.7,3331.0,1.34527317]
[1768356011461,0.002,3331.7,3331.3,0.001]
[1768356012960,1.45695019,3331.7,3331.3,0.001]
[1768356013258,0.002,3331.7,3331.3,0.001]
[1768356015779,0.002,3331.7,3331.3,1.34627317]
[1768356016876,3.00102034,3332.2,3331.7,1.34527317]
[1768356017267,3.00066014,3332.6,3331.7,1.34527317]
[1768356017577,7.45627047,3332.6,3331.7,1.34527317]
[1768356017776,3.00066014,3332.6,3331.7,1.34527317]
[1768356017979,3.00066014,3332.6,3331.9,1.41118908]
[1768356018159,6.00132028,3332.6,3331.9,0.41]
[1768356018358,7.40349391,3332.6,3331.9,0.41]
[1768356019178,3.41014939,3333.2,3331.8,1.82118908]
[1768356019179,1.40217363,3332.7,3331.8,1.82118908]
[1768356019475,1.40217363,3332.9,3331.9,1.41118908]
[1768356019665,0.4402526,3332.8,3331.9,1.41118908]
[1768356020967,1.40217363,3332.9,3331.9,1.41118908]
[1768356021280,10.40280366,3333.1,3331.9,1.41118908]
[1768356021646,1.40217363,3333.0,3331.9,1.41118908]
[1768356023189,0.002,3332.5,3331.9,1.41118908]
[1768356023675,0.002,3332.8,3331.9,1.41118908]
[1768356023876,0.002,3332.8,3332.0,0.41]
[1768356024096,0.002,3332.8,3332.1,0.18211891]
[1768356024651,1.40417363,3332.8,3331.9,1.41118908]
[1768356024991,1.40417363,3332.8,3331.7,1.41118908]
[1768356025159,1.40217363,3332.6,3331.8,0.41]
[1768356027069,1.40217363,3332.6,3331.8,1.82118908]
[1768356027262,3.00075018,3332.5,3331.8,1.82118908]
[1768356027681,3.00075018,3332.5,3331.8,2.00330799]
[1768356027893,3.00075018,3332.5,3331.9,1.41118908]
[1768356028446,1.40217363,3332.6,3331.8,0.59211891]
[1768356029781,4.40292381,3332.5,3331.8,0.59211891]
[1768356029984,3.00075018,3332.5,3331.8,2.00330799]
[1768356030160,3.00075018,3332.5,3331.9,1.41118908]
[1768356030864,3.00075018,3332.5,3331.7,1.41118908]
[1768356031175,1.40217363,3332.4,3331.8,0.41]
[1768356031577,1.40217363,3332.4,3331.9,0.41]
[1768356031774,3.00093028,3332.3,3331.9,0.41]
[1768356031979,3.00088345,3332.4,3331.9,0.41]
[1768356032481,4.79063437,3332.5,3331.9,0.41]
[1768356032688,3.38846074,3332.5,3331.9,0.41]
[1768356032855,3.38846074,3332.5,3331.8,0.41]
[1768356033054,3.00079261,3332.5,3331.8,0.41]
[1768356034083,6.0011402,3332.7,3331.8,1.82118908]
[1768356034387,6.0011402,3332.7,3331.9,1.41118908]
[1768356035193,3.0005701,3332.7,3331.9,1.41118908]
[1768356036077,0.002,3332.5,3331.9,1.41118908]
[1768356036278,0.002,3332.5,3332.1,1.40038712]
[1768356037590,0.002,3332.5,3331.8,0.001]
[1768356037778,1.38270652,3332.5,3331.8,0.001]
[1768356038165,3.00278964,3332.5,3331.8,0.001]
[1768356038389,3.00278964,3332.5,3331.8,1.40138712]
[1768356040205,0.002,3332.5,3331.8,1.40138712]
[1768356040502,1.38270652,3332.5,3331.8,0.001]
[1768356041999,1.56197717,3332.5,3331.8,0.001]
[1768356042715,1.38070652,3332.3,3331.8,0.001]
[1768356043436,1.38070652,3332.1,3331.3,0.001]
[1768356043650,1.38070652,3332.1,3330.5,12.71934235]
[1768356043941,1.38070652,3332.1,3330.7,0.41]
[1768356044099,1.38070652,3331.9,3330.7,0.41]